Cogmind - Beta 15 @@@ ROGUE MODE // 2025.10.20 @ 22:47:31 Player: ALICE_MARGADROID_V-02 Result: Self-destructed Performance ------------- Evolutions (5) 2500 Regions Visited (14) 2800 Robots Destroyed (216) 1080 Value Destroyed (7110) 7110 Prototype IDs (43) 860 Alien Tech Used (0) 0 Bonus (2156) 2156 TOTAL SCORE: 16506 Bonus ------- High Alert Combat Kills 755 Follower Combat Kills 1799 Network Hubs Disabled 200 Aligned with FarCom 300 Built Enhanced Grunts 300 A7 Reached Mainframe 300 Friendly Fire -1498 Cogmind --------- Core Integrity 730/1000 Matter 158/300 Energy 191/290 System Corruption 8% Temperature Warm (188) Movement Rolling (190) Ox7 Location -5/Upper Caves Parts ------- > --- POWER (1) -------- Reinforced Deuterium Engine > --- PROPULSION (2) --- Wheel Armored Wheel > --- UTILITY (7) ------ Advanced Heat Sink Huge Storage Unit Enhanced Optical Array Core Shielding Layered Medium Armor Plating Improved Hardlight Generator Improved Hacking Suite > --- WEAPON (7) ------- Long-range Proton Cannon Coil Gun Improved Heavy Machine Gun Magnetic Acceleration Cannon Mass Driver Mass Driver > --- INVENTORY (25) --- Compact Particle Reactor Improved Cooling System Advanced Matter Compressor (400) Advanced Matter Compressor (400) IFF Parser Recoil Stabilizer Improved Kinecellerator Improved Weapon Cycler Improved Transmission Jammer Hardened Heavy Armor Plating Layered Medium Armor Plating Centrium Medium Armor Plating Force Field Remote Force Field Authchip [Weapon] Long-range Tractor Beam Force Rifle Cooled Phase Cannon Advanced KE Penetrator Enhanced Gauss Cannon Enhanced Gauss Cannon Enhanced Gauss Cannon Rocket Array Rocket Array Peak State ------------ > --- POWER ------------ Reinforced Deuterium Engine > --- PROPULSION ------- Armored Wheel Armored Wheel > --- UTILITY ---------- Advanced Heat Sink Huge Storage Unit Enhanced Optical Array Core Analyzer Improved Hacking Suite Improved Hacking Suite Long-range Tractor Beam > --- WEAPON ----------- Force Rifle Cooled Phase Cannon Cooled Phase Cannon Improved Heavy Machine Gun Improved Heavy Machine Gun Mass Driver Mass Driver > --- INVENTORY -------- Compact Particle Reactor Improved Cooling System Advanced Matter Compressor Advanced Matter Compressor IFF Parser Matter Filter Improved Kinecellerator Improved Weapon Cycler Improved Transmission Jammer Hardened Medium Armor Plating Hardened Heavy Armor Plating Layered Medium Armor Plating Layered Medium Armor Plating Centrium Medium Armor Plating Improved Hardlight Generator Improved Shield Generator Remote Force Field Long-range Proton Cannon Advanced KE Penetrator Enhanced Gauss Cannon Enhanced Gauss Cannon Enhanced Gauss Cannon Rocket Array Rocket Array [Rating: 99] Favorites ----------- Power Reinforced Deuterium Engine Engine Reinforced Deuterium Engine Reactor Compact Particle Reactor Propulsion Armored Wheel Treads Light Treads Leg Aluminum Leg Wheel Armored Wheel Utility Huge Storage Unit Device Advanced Heat Sink Storage Huge Storage Unit Processor Core Analyzer Hackware Improved Hacking Suite Protection Hardened Medium Armor Plating Weapon XL Autogun Subcomponent Energy Gun Force Rifle Energy Cannon Cooled Phase Cannon Ballistic Gun XL Autogun Subcomponent Ballistic Cannon Mass Driver Launcher Proton Missile Launcher Special Weapon Mining Laser Impact Weapon Powered Hammer Slashing Weapon Chainsword Build | -11 -10 -10 -10 -9 -8 -7 -6 -6 -6 -6 -6 -5 -5 -5 ------- Run | Yrd Mat Min Exi Min Mat Fac Fac Ext Cet Arc Hub Fac Upp Upp Slots Evolved 10 | . . . . . 4 2 2 . . . . 2 . . Power . | . . . . . . . . . . . . . . . Propulsion . | . . . . . . . . . . . . . . . Utility 5 | . . . . . 1 . 2 . . . . 2 . . Weapon 5 | . . . . . 3 2 . . . . . . . . Parts Attached 140 | 8 9 6 1 . 20 17 26 6 7 2 2 27 5 4 Power 10 | 1 . 1 . . 2 1 2 1 1 . . . . 1 Engine 9 | 1 . 1 . . 2 1 2 1 . . . . . 1 Core . | . . . . . . . . . . . . . . . Reactor 1 | . . . . . . . . . 1 . . . . . Propulsion 28 | 2 2 2 . . 8 5 5 . . . . 4 . . Treads 16 | . 2 2 . . 7 2 3 . . . . . . . Leg 2 | 2 . . . . . . . . . . . . . . Wheel 10 | . . . . . 1 3 2 . . . . 4 . . Hover . | . . . . . . . . . . . . . . . Flight . | . . . . . . . . . . . . . . . Utility 53 | 3 6 1 1 . 4 5 8 2 3 2 . 12 4 2 Device 24 | 2 2 . . . . 1 4 1 1 2 . 7 4 . Storage 7 | 1 2 . 1 . 1 . 2 . . . . . . . Processor 4 | . . . . . . 1 . . . . . 2 . 1 Hackware 4 | . . . . . 1 . 2 . . . . 1 . . Protection 14 | . 2 1 . . 2 3 . 1 2 . . 2 . 1 Artifact . | . . . . . . . . . . . . . . . Weapon 49 | 2 1 2 . . 6 6 11 3 3 . 2 11 1 1 Energy Gun 10 | . . 1 . . 3 3 . . . . . 3 . . Energy Cannon 4 | . . . . . . . 2 1 . . . 1 . . Ballistic Gun 17 | 2 . 1 . . 2 . 5 2 2 . . 2 . 1 Ballistic Cannon 7 | . . . . . . . . . 1 . 1 4 1 . Launcher 8 | . 1 . . . . 2 3 . . . 1 1 . . Special Weapon 1 | . . . . . . 1 . . . . . . . . Impact Weapon 1 | . . . . . 1 . . . . . . . . . Slashing Weapon 1 | . . . . . . . 1 . . . . . . . Piercing Weapon . | . . . . . . . . . . . . . . . Special Melee Weapon . | . . . . . . . . . . . . . . . Unidentified Prototypes 15 | . . . . . 5 . 6 . 3 . . 1 . . Corrupted Parts 1 | . . . . . . . . . 1 . . . . . System Corruption 5 | . . . . . . . . . 5 . . . . . Parts Lost 11 | . . 1 . . 2 . . 1 . . 1 3 1 2 Power . | . . . . . . . . . . . . . . . Propulsion 2 | . . . . . 1 . . . . . 1 . . . Utility 5 | . . . . . 1 . . 1 . . . 1 1 1 Weapon 4 | . . 1 . . . . . . . . . 2 . 1 Highest Loss Streak 1 | . . 1 . . 1 . . 1 . . 1 1 1 1 To Critical Strikes . | . . . . . . . . . . . . . . . Average Backups 22 | 5 13 14 15 15 21 24 24 23 24 24 24 23 23 24 Power 1 | . 1 1 1 1 1 3 2 1 1 1 1 1 1 1 Propulsion 1 | 3 3 3 4 4 2 4 1 . . . . . . . Utility 11 | . 4 6 5 6 8 10 11 13 14 14 14 15 14 15 Weapon 7 | . 3 3 4 4 8 7 7 8 9 9 9 7 8 8 Tool/Special . | . . . . . . . . . . . . . . . Unused Backups 41 | . 2 3 . . 7 6 8 . 1 1 1 4 . 8 Power 7 | . . 2 . . 3 1 . . 1 . . . . . Propulsion 3 | . 1 . . . . 1 . . . . . 1 . . Utility 22 | . . . . . 1 4 6 . . 1 1 2 . 7 Weapon 9 | . 1 1 . . 3 . 2 . . . . 1 . 1 Tool/Special . | . . . . . . . . . . . . . . . Average Slot Usage (%) 90 | . 100 99 84 100 70 75 84 99 99 100 99 99 99 99 Engine 7 | . 14 14 14 14 8 7 6 5 5 6 6 5 5 4 Treads 9 | . 24 27 28 28 17 14 9 . . . . . . . Wheel 5 | . . . . . . . 3 13 13 13 12 10 11 11 Device 5 | . 6 1 . . . . 5 6 5 6 6 6 16 16 Storage 7 | . 13 14 14 14 9 7 6 6 6 6 6 5 5 5 Processor 5 | . . . . . . 5 6 6 6 6 6 10 5 5 Hackware 5 | . . . . . 6 1 5 6 6 6 6 10 5 5 Protection 6 | . 7 12 14 14 10 7 6 6 6 6 6 4 5 5 Energy Gun 1 | . . 5 . . . 2 . . . . . 2 . . Energy Cannon 2 | . . . . . . . 1 1 6 6 2 7 7 2 Ballistic Gun 16 | . 27 22 13 28 10 7 9 27 31 33 33 22 11 14 Ballistic Cannon 4 | . . . . . . . . . 4 6 10 6 19 21 Launcher 4 | . . . . . . 10 12 11 2 . . . . 1 Impact Weapon 2 | . . . . . 7 6 3 . . . . . . . Peak Build Rating 99 | 9 8 9 13 13 59 73 84 79 88 83 80 99 99 96 Average Rating 68 | 5 7 8 10 13 51 69 77 74 81 80 79 92 97 92 On Entrance 51 | . 8 8 9 13 13 59 73 77 78 83 80 78 99 96 Naked Turns . | . . . . . . . . . . . . . . . Heaviest Build 170 | 15 30 33 53 53 109 130 144 144 147 143 139 168 170 166 Greatest Support 60 | 20 40 40 40 40 44 44 60 24 24 24 24 24 22 22 Greatest Overweight (x) 11 | . . . 1 1 2 10 10 5 6 5 11 11 7 7 Average Overweight (x) 3 | . . . . 1 1 2 3 5 5 5 5 5 7 6 Largest Inventory Capacity 25 | 8 15 15 20 20 25 25 25 25 25 25 25 25 25 25 Average Capacity 23 | 7 14 15 18 20 22 25 25 25 25 25 25 25 25 25 Most Carried 25 | 8 15 15 20 19 25 25 25 25 25 25 25 25 25 25 Average Carried 23 | 5 13 14 17 18 21 24 24 24 25 24 25 24 24 25 Final Capacity 25 | 8 15 15 20 20 25 25 25 25 25 25 25 25 25 25 Final Carried 25 | 8 15 15 18 19 25 25 25 25 25 25 25 25 25 25 Class Distribution -------------------- 44% | Executioner 15% | Mutant 12% | Scavenger-Executioner 11% | Hacker-Executioner 7% | Skirmisher 6% | Commander-Executioner Dominant Class ---------------- Mutant | -10/Materials Mutant | -10/Mines Mutant | -10/Exiles Mutant | -9/Mines Skirmisher | -8/Materials Executioner | -7/Factory Executioner | -6/Factory Commander-Executioner | -6/Extension Scavenger-Executioner | -6/Cetus Commander-Executioner | -6/Archives Commander-Executioner | -6/Hub_04(d) Hacker-Executioner | -5/Factory Executioner | -5/Upper Caves Executioner | -5/Upper Caves Resources | -11 -10 -10 -10 -9 -8 -7 -6 -6 -6 -6 -6 -5 -5 -5 ----------- Run | Yrd Mat Min Exi Min Mat Fac Fac Ext Cet Arc Hub Fac Upp Upp Matter Collected 8330 | 345 225 456 50 105 1017 599 1638 1296 150 165 121 1698 180 285 Remotely 304 | . . . . . . . . . . . . 267 37 . Salvage Created 9069 | 189 332 373 . . 1276 642 1844 1104 176 210 193 2419 . 311 Parts 456 | 20 17 31 . . 69 30 76 50 6 10 6 137 . 4 Haulers Intercepted 13 | . 1 . . . 5 . 3 1 . . . 3 . . Recyclers Shooed 12 | 2 2 . . . 1 1 1 2 . . . 3 . . Parts Field Recycled . | . . . . . . . . . . . . . . . Retrieved Matter . | . . . . . . . . . . . . . . . Parts Self-Destructed 12 | . . . . . . . . . . . . . 2 10 Prevented 2 | . . . . . . . . . . . . . . 2 Kills | -11 -10 -10 -10 -9 -8 -7 -6 -6 -6 -6 -6 -5 -5 -5 ------- Run | Yrd Mat Min Exi Min Mat Fac Fac Ext Cet Arc Hub Fac Upp Upp Combat Hostiles Destroyed 125 | . 7 10 . . 16 10 14 12 1 2 . 39 1 13 Melee 3 | . . . . . 2 . . 1 . . . . . . Guns 71 | . 4 10 . . 12 10 6 11 1 1 . 16 . . Cannons 18 | . . . . . . . 2 . . 1 . 11 1 3 AOE 32 | . 3 . . . 1 . 6 . . . . 12 . 10 Classes Destroyed 16 | 3 4 1 . . 3 1 . 1 . . . 1 1 1 Worker 16 | 2 . 2 . . 2 1 1 2 . . 2 4 . . Builder 20 | . . . . . 3 4 4 3 . . . 6 . . Tunneler 9 | 5 . 1 . . . . 1 . . . . 2 . . Hauler 13 | . 1 . . . 5 . 3 1 . . . 3 . . Recycler 20 | 1 1 1 . . 2 . 8 1 . . 1 5 . . Operator 3 | . . . . . 1 . . . . 2 . . . . Watcher 7 | . 1 . . . 2 . . . . . . 4 . . Swarmer 32 | . 3 6 . . 3 . 6 . . . . 14 . . Saboteur 1 | . . . . . . . . . . . . 1 . . Grunt 42 | . 4 2 . . 11 4 1 8 . . . 7 . 5 Brawler 4 | . . . . . . . . . . . . . . 4 Duelist 8 | . . . . . 2 . 1 1 . . . 1 . 3 Sentry 14 | . . 2 . . 1 4 1 2 . 2 . 1 . 1 Hunter 2 | . . . . . . . . 1 . . . 1 . . Programmer 21 | . . . . . . 2 5 . . . . 14 . . Behemoth 1 | . . . . . . . . . . . . . 1 . Cetus Guard 1 | . . . . . . . . . 1 . . . . . Thug 1 | . . . . . . . . . 1 . . . . . Best Kill Streak 12 | 2 4 6 . . 8 5 5 3 1 2 2 12 1 9 Combat Bots Only 9 | . 3 5 . . 6 5 4 3 1 2 . 6 1 9 Max Kills in Single Turn 7 | 1 2 1 . . 2 2 4 1 1 1 1 7 1 6 Gunslinging 1 | . . . . . . . . . . . . 1 . . Exploded 6 | . 2 . . . 1 . 4 . . . . 4 . 6 Melee 1 | . . . . . 1 . . 1 . . . . . . Uniques/NPCs Destroyed 1 | . . . . . . . . . 1 . . . . . A7 (-6/Cetus) Combat | -11 -10 -10 -10 -9 -8 -7 -6 -6 -6 -6 -6 -5 -5 -5 -------- Run | Yrd Mat Min Exi Min Mat Fac Fac Ext Cet Arc Hub Fac Upp Upp Hostile Shots Fired 492 | . 16 63 . . 43 66 59 34 1 1 18 115 48 28 Missed 145 | . 3 16 . . 10 25 21 10 . . 3 36 17 4 Hits 347 | . 13 47 . . 33 41 38 24 1 1 15 79 31 24 Melee 2 | . . . . . . . 2 . . . . . . . Projectile 345 | . 13 47 . . 33 41 36 24 1 1 15 79 31 24 Critical Strikes 15 | . . 4 . . 2 . . 3 . . 2 4 . . Actively Blocked 2 | . . 1 . . 1 . . . . . . . . . Damage Taken 5836 | . 161 548 . . 502 334 477 397 38 24 601 1770 475 509 Core 504 | . 23 93 . . 24 6 28 18 . . 42 223 24 23 Absorbed by Shields 528 | . . . . . . . 72 171 13 . . 108 104 60 Redirected to Shielding 60 | . 13 27 . . 20 . . . . . . . . . Regen/Repaired (Parts) 128 | . . . . . 128 . . . . . . . . . Core Remaining (%) 87 | 100 . . . 53 95 99 . . . . 89 . . . Volleys Fired 447 | 20 29 33 . . 47 21 60 47 17 22 15 119 8 9 Largest 7 | 2 2 2 . . 2 4 7 7 5 7 1 7 7 5 Hottest 317 | 40 40 85 . . 83 243 175 170 170 264 90 317 271 202 Shots Fired 1125 | 40 56 66 1 . 58 27 98 201 37 48 16 409 43 25 Gun 785 | 40 54 66 1 . 56 27 44 179 23 25 6 240 17 7 Cannon 302 | . . . . . . . 46 7 14 23 10 164 26 12 Launcher 38 | . 2 . . . 2 . 8 15 . . . 5 . 6 Special . | . . . . . . . . . . . . . . . Kinetic 816 | 40 54 61 1 . 56 21 44 179 23 30 7 247 37 16 Thermal 268 | . . 5 . . . 6 46 7 14 18 9 157 6 . Explosive 15 | . 2 . . . 2 . . . . . . 5 . 6 Electromagnetic 26 | . . . . . . . 8 15 . . . . . 3 Robot Hit Streak 23 | 4 10 9 . . 10 23 14 10 6 6 3 7 7 7 Robot Miss Streak 8 | 7 3 7 . . 5 4 6 4 4 6 1 8 5 4 Penetration Max 1 | . . . . . . . . . . . . . . 1 Secondary Targets 7 | . . 1 . . . . 1 2 . . . 3 . . Max Gunslinging Chain 1 | . . 1 . . . . 1 1 . . . 1 . . Shots Hit Robots 544 | 16 34 34 . . 59 29 58 104 20 23 6 128 20 13 Core Hits 424 | 9 17 18 . . 43 22 36 58 13 14 4 111 5 74 Critical Kills 3 | . . . . . . . . . . . . 3 . . Critical Parts Destroyed 6 | . . . . . 2 1 . . . . . 2 1 . Critical Strikes 12 | . . 1 . . 2 1 . . . . . 6 2 . Burn 1 | . . 1 . . . . . . . . . . . . Meltdown 1 | . . . . . . . . . . . . 1 . . Destroy 5 | . . . . . . . . . . . . 4 1 . Blast 2 | . . . . . . . . . . . . 1 1 . Smash 3 | . . . . . 2 1 . . . . . . . . Melee Attacks 85 | . . . . . 17 16 45 7 . . . . . . Impact 52 | . . . . . 17 16 19 . . . . . . . Slashing 33 | . . . . . . . 26 7 . . . . . . Piercing . | . . . . . . . . . . . . . . . Sneak Attacks 21 | . . . . . 3 5 13 . . . . . . . Combat Hostiles . | . . . . . . . . . . . . . . . Follow-up Attacks . | . . . . . . . . . . . . . . . Damage Inflicted 24483 | 237 569 502 . . 3093 1702 4019 3256 693 694 203 6443 738 2334 Guns 10967 | 237 441 472 . . 2350 1267 1252 2394 326 325 68 1636 161 38 Cannons 4944 | . . . . . . . 543 170 367 369 127 2587 577 204 Explosions 6361 | . 125 . . . 116 . 1157 651 . . . 2220 . 2092 Melee 2165 | . . . . . 627 430 1067 41 . . . . . . Ramming 46 | . 3 30 . . . 5 . . . . 8 . . . Kinetic 11598 | 237 441 413 . . 2350 1132 1252 2394 326 352 68 1843 623 167 Thermal 5805 | . . 59 . . . 135 1603 170 367 342 127 2887 115 . Explosive 4046 | . 125 . . . 116 . . . . . . 1713 . 2092 Electromagnetic 823 | . . . . . . . 97 651 . . . . . 75 Impact 1672 | . . . . . 627 430 615 . . . . . . . Slashing 493 | . . . . . . . 452 41 . . . . . . Piercing . | . . . . . . . . . . . . . . . Highest Corruption 12 | . 2 2 2 2 . . 2 2 7 7 12 8 8 8 Average Corruption 3 | . 2 2 2 2 . . 1 2 5 7 7 4 8 8 Corruption Purged . | . . . . . . . . . . . . . . . Corruption Blocked . | . . . . . . . . . . . . . . . Effects 213 | . 7 3 14 6 . . 34 16 13 6 23 39 31 21 Message Errors 60 | . 1 1 2 1 . . 13 4 5 3 9 9 5 7 Matter Fused 36 | . 1 . . 2 . . 11 2 1 2 3 7 5 2 Heat Flow Errors 42 | . 3 . 4 1 . . 4 3 2 . 4 10 7 4 Energy Discharges 26 | . . . 1 . . . 2 6 2 . 1 6 6 2 Parts Rejected 2 | . 1 1 . . . . . . . . . . . . Parts Fused 1 | . . . . . . . . . . . 1 . . . Data Loss (minor) 23 | . . 1 4 1 . . 2 1 1 1 1 1 6 4 Data Loss (major) 9 | . . . 2 1 . . 1 . 1 . 1 3 . . Misfires 8 | . . . 1 . . . 1 . 1 . 1 1 1 2 Alerts 5 | . 1 . . . . . . . . . 2 1 1 . Weapon Failures 1 | . . . . . . . . . . . . 1 . . Overload Shots 2 | . . . . . . . 2 . . . . . . . Overflow Damage 1221 | . . . . . 170 315 506 1 . . 2 215 4 8 Projectiles 113 | . . . . . . . 9 . . . 2 98 4 . Explosions 307 | . . . . . . . 181 1 . . . 117 . 8 Melee 801 | . . . . . 170 315 316 . . . . . . . Knockbacks 10 | . . . . . 3 2 2 . . . . 3 . . Impact 7 | . . . . . 3 2 2 . . . . . . . Kinetic 3 | . . . . . . . . . . . . 3 . . Secondary . | . . . . . . . . . . . . . . . Self-Inflicted Damage 432 | . . . . . . . . 48 . . 4 363 . 17 Shots 16 | . . . . . . . . 3 . . . 12 . 1 Rammed 5 | . 1 2 . . . 1 . . . . 1 . . . Targets Rammed 7 | . 1 4 . . . 1 . . . . 1 . . . Kicked . | . . . . . . . . . . . . . . . Crushed 2 | . . 2 . . . . . . . . . . . . Highest Temperature 378 | . 273 123 267 168 333 323 226 312 378 241 218 322 303 245 Average Temperature 90 | . 102 34 119 87 102 107 67 109 148 57 48 87 109 92 Received Heat Transfer 1065 | . 84 198 . . 261 69 56 63 . . . 111 78 145 Effects 6 | . . . . . 1 . . 4 1 . . . . . Energy Bleed 1 | . . . . . . . . 1 . . . . . . Interference 4 | . . . . . 1 . . 3 . . . . . . Short Circuit 1 | . . . . . . . . . 1 . . . . . Siege Activations . | . . . . . . . . . . . . . . . Martial Activations . | . . . . . . . . . . . . . . . Shielding Activations . | . . . . . . . . . . . . . . . Robots Disrupted 1 | . . . . . . . . 1 . . . . . . Combat Hostiles 1 | . . . . . . . . 1 . . . . . . Robots Corrupted 6 | . . . . . 1 2 3 . . . . . . . Combat Hostiles 1 | . . . . . 1 . . . . . . . . . Parts Fried 22 | . . . . . 4 7 10 1 . . . . . . Impact Corruptions 24 | . . . . . 5 11 8 . . . . . . . Robots Melted 1 | . . . . . . . . . . . . 1 . . Combat Hostiles . | . . . . . . . . . . . . . . . Parts Melted 17 | . . 2 . . . . 3 1 . . 2 9 . . Heat Transferred 5881 | . . 222 . . . 286 1205 250 426 550 200 2631 111 . Parts Sabotaged . | . . . . . . . . . . . . . . . Parts Stolen . | . . . . . . . . . . . . . . . Parts Stripped . | . . . . . . . . . . . . . . . Power Chain Reactions 1 | . . . . . . . 1 . . . . . . . Alert | -11 -10 -10 -10 -9 -8 -7 -6 -6 -6 -6 -6 -5 -5 -5 ------- Run | Yrd Mat Min Exi Min Mat Fac Fac Ext Cet Arc Hub Fac Upp Upp Maximum Alert Level 5 | . . . . . 1 . 2 3 2 1 3 5 . . Low Security (%) 58 | 100 100 100 . 100 35 100 75 . . 6 43 36 . . Level 1 19 | . . . . . 64 . 12 48 . 93 15 17 . . Level 2 11 | . . . . . . . 11 31 100 . 37 6 . . Level 3 7 | . . . . . . . . 19 . . 3 23 . . Level 4 3 | . . . . . . . . . . . . 15 . . Level 5 . | . . . . . . . . . . . . 1 . . High Security . | . . . . . . . . . . . . . . . Max Security . | . . . . . . . . . . . . . . . Peak Influence 1601 | 10 110 134 . 11 342 117 533 1037 592 358 721 1601 . . Initial 563 | . . 24 . . . 81 20 260 563 169 105 314 . . Average 274 | 1 28 85 . . 208 27 157 515 510 316 370 550 . . Influence Increases 7390 | 40 242 265 . 11 687 316 887 1247 166 234 953 2011 30 301 Destroy 0b10 Robot/C 3280 | . 140 200 . . 400 200 280 540 80 80 280 780 20 280 Destroy 0b10 Robot/NC 490 | 40 15 20 . . 80 25 85 60 5 10 30 120 . . Destroy Leader 622 | . 34 30 . . 86 50 82 84 . . 72 154 10 20 Allied During Kill 996 | . . . . . 35 . . 464 34 90 372 . . 1 Successful Hack 296 | . 16 . . 11 4 10 27 21 15 . 114 78 . . Select Force Hacks 80 | . 30 . . . . . . . . . 50 . . . Disable Machine 735 | . . . . . 15 15 315 30 . 45 . 315 . . Destroy Structure 786 | . 7 . . . 67 16 98 18 17 9 20 534 . . Partial Spotted 45 | . . . . . . . . . . . 15 30 . . Lose Combat Pursuer 60 | . . 15 . . . . . 30 15 . . . . . Influence Decreases 6944 | 40 180 254 73 11 508 453 397 772 750 354 614 1058 993 487 Entered New Map 2439 | . . 38 73 . . 98 22 272 444 254 198 328 591 121 Time Decay 4075 | 40 180 206 . 11 448 355 375 410 206 100 326 700 392 326 Lost Part 110 | . . 10 . . 20 . . 10 . . 10 30 10 20 Lost Ally 320 | . . . . . 40 . . 80 100 . 80 . . 20 Squads Dispatched 40 | . 2 . . . 3 3 9 3 . . 7 12 . 1 Investigation 7 | . 2 . . . . . 1 1 . . 2 1 . . Extermination 17 | . . . . . . 3 5 . . . 2 7 . . Reinforcement 7 | . . . . . 2 . . 1 . . 3 1 . . Assault 5 | . . . . . . . . 1 . . . 3 . 1 Garrison 4 | . . . . . 1 . 3 . . . . . . . Intercept . | . . . . . . . . . . . . . . . Searches Triggered . | . . . . . . . . . . . . . . . Construction Impeded 2 | . . . . . 1 . . 1 . . . . . . Haulers Reinforced . | . . . . . . . . . . . . . . . Active Scanning Responses . | . . . . . . . . . . . . . . . Cargo Convoy Interrupts . | . . . . . . . . . . . . . . . Stealth | -11 -10 -10 -10 -9 -8 -7 -6 -6 -6 -6 -6 -5 -5 -5 --------- Run | Yrd Mat Min Exi Min Mat Fac Fac Ext Cet Arc Hub Fac Upp Upp Distress Signals 8 | . . . . . 1 . . 2 1 . 3 1 . . Communications Jammed . | . . . . . . . . . . . . . . . Distress Signals . | . . . . . . . . . . . . . . . Times Spotted 202 | . 13 10 . . 27 10 13 28 4 19 11 46 1 20 Peak Tracking Total 9 | . 4 3 . . 6 5 4 4 5 1 4 5 1 9 Tactical Retreats 4 | . . 1 . . . . . 2 1 . . . . . Traps | -11 -10 -10 -10 -9 -8 -7 -6 -6 -6 -6 -6 -5 -5 -5 ------- Run | Yrd Mat Min Exi Min Mat Fac Fac Ext Cet Arc Hub Fac Upp Upp Traps Triggered 13 | . 2 . . . . . 3 3 . . . 5 . . Indirectly 2 | . . . . . . . . 2 . . . . . . Trap Hack Attempts . | . . . . . . . . . . . . . . . Triggered . | . . . . . . . . . . . . . . . Disarmed . | . . . . . . . . . . . . . . . Reprogrammed . | . . . . . . . . . . . . . . . Reused . | . . . . . . . . . . . . . . . Traps Extracted . | . . . . . . . . . . . . . . . Installed . | . . . . . . . . . . . . . . . Triggered . | . . . . . . . . . . . . . . . Machines | -11 -10 -10 -10 -9 -8 -7 -6 -6 -6 -6 -6 -5 -5 -5 ---------- Run | Yrd Mat Min Exi Min Mat Fac Fac Ext Cet Arc Hub Fac Upp Upp Machines Disabled 52 | . . . . . 1 1 21 3 . 3 . 21 . 2 Max in Single Turn 9 | . . . . . 1 1 9 1 . 1 . 3 . 1 Garrison Access 1 | . . . . . 1 . . . . . . . . . Network Hub 1 | . . . . . . . . . . . 1 . . . Machines Repaired . | . . . . . . . . . . . . . . . Machines Dismantled . | . . . . . . . . . . . . . . . Machines Sabotaged 1 | . . . . . . . . . . . 1 . . . Overloaded Fab Kills . | . . . . . . . . . . . . . . . Hacking | -11 -10 -10 -10 -9 -8 -7 -6 -6 -6 -6 -6 -5 -5 -5 --------- Run | Yrd Mat Min Exi Min Mat Fac Fac Ext Cet Arc Hub Fac Upp Upp Machines Accessed 55 | . 5 . 2 1 7 5 10 6 2 . 5 11 . 1 Terminals 31 | . 3 . . 1 2 2 4 6 2 . 5 6 . . Fabricators 3 | . . . . . . 1 1 . . . . 1 . . Repair Stations 5 | . . . . . 2 . 1 . . . . 2 . . Recycling Units 11 | . 2 . . . 2 2 3 . . . . 2 . . Scanalyzers . | . . . . . . . . . . . . . . . Garrison Access 2 | . . . . . 1 . 1 . . . . . . . Total Hacks 144 | . 10 . 2 2 14 15 26 23 4 . 15 32 . 1 Successful 86 | . 6 . 2 2 11 5 15 10 2 . 11 21 . 1 Failed 58 | . 4 . . . 3 10 11 13 2 . 4 11 . . Catastrophic 5 | . 2 . . . . 1 . . . . . 2 . . Database Lockouts . | . . . . . . . . . . . . . . . Manual 47 | . 4 . 1 1 7 2 9 8 1 . 6 8 . . Terminals 98 | . 5 . . 2 6 9 14 23 4 . 15 20 . . Fabricators 6 | . . . . . . 1 2 . . . . 3 . . Repair Stations 12 | . . . . . 4 . 2 . . . . 6 . . Recycling Units 23 | . 5 . . . 3 5 7 . . . . 3 . . Scanalyzers . | . . . . . . . . . . . . . . . Garrison Access 2 | . . . . . 1 . 1 . . . . . . . Terminal Hacks 39 | . 1 . 2 2 2 2 3 6 2 . 6 12 . 1 Record 4 | . . . 1 . . . . . 1 . . 2 . . Part Schematic 2 | . . . . 1 . . . . . . 1 . . . Robot Analysis 2 | . . . . . . 1 . . . . . 1 . . Prototype ID Bank 2 | . . . . . . . . 1 . . . 1 . . Open Door 4 | . . . . . . . . 2 1 . . . . 1 Open DSF 1 | . . . . . . . 1 . . . . . . . Level Access Points 1 | . . . . . . . . . . . 1 . . . Branch Access Points 3 | . . . . . 1 . 1 . . . . 1 . . Machine Index 2 | . . . . . . . . . . . 1 1 . . Terminal Index 1 | . . . . . . . . . . . . 1 . . Alert Level 4 | . 1 . . . . . 1 . . . . 2 . . Locate Traps 1 | . . . . . . . . 1 . . . . . . Dispatch Records 1 | . . . . 1 . . . . . . . . . . Patrol Status 1 | . . . . . . 1 . . . . . . . . Extermination Status 1 | . . . . . . . . . . . 1 . . . Registered Components 2 | . . . . . . . . 1 . . 1 . . . Registered Prototypes 1 | . . . . . . . . . . . . 1 . . Zone Layout 5 | . . . . . 1 . . 1 . . 1 2 . . Proto ID Catalog 1 | . . . 1 . . . . . . . . . . . Fabricator Hacks 3 | . . . . . . . 1 . . . . 2 . . Network Status 2 | . . . . . . . 1 . . . . 1 . . Load Schematic 1 | . . . . . . . . . . . . 1 . . Repair Station Hacks 7 | . . . . . 4 . 1 . . . . 2 . . Scan Component 5 | . . . . . 2 . 1 . . . . 2 . . Repair 2 | . . . . . 2 . . . . . . . . . Recycling Unit Hacks 14 | . 3 . . . 2 2 5 . . . . 2 . . Report Inventory 11 | . 2 . . . 2 2 3 . . . . 2 . . Retrieve Components 3 | . 1 . . . . . 2 . . . . . . . Scanalyzer . | . . . . . . . . . . . . . . . Garrison Access Hacks 1 | . . . . . 1 . . . . . . . . . Seal Access 1 | . . . . . 1 . . . . . . . . . Unauthorized Hacks 22 | . 2 . . . 2 1 5 4 . . 5 3 . . Terminals 16 | . 1 . . . 1 1 3 4 . . 5 1 . . Botnet 13 | . . . . . 1 1 3 3 . . 4 1 . . Disrupt 2 | . 1 . . . . . . 1 . . . . . . Sabotage 1 | . . . . . . . . . . . 1 . . . Fabricators 2 | . . . . . . . 1 . . . . 1 . . Haulers 1 | . . . . . . . 1 . . . . . . . Recompile 1 | . . . . . . . . . . . . 1 . . Repair Stations . | . . . . . . . . . . . . . . . Recycling Units 4 | . 1 . . . 1 . 1 . . . . 1 . . Recyclers 3 | . . . . . 1 . 1 . . . . 1 . . Tunnel 1 | . 1 . . . . . . . . . . . . . Scanalyzers . | . . . . . . . . . . . . . . . Garrison Access . | . . . . . . . . . . . . . . . Data Cores Recovered 1 | . . . . . . . . . . . 1 . . . Used 1 | . . . . . . . . . . . 1 . . . Hacking Detections 38 | . 3 . . 1 3 4 9 4 1 . 5 8 . . Full Trace Events 2 | . . . . . . . . 1 . . 1 . . . Feedback Events . | . . . . . . . . . . . . . . . Feedback Blocked . | . . . . . . . . . . . . . . . Robot Schematics Acquired . | . . . . . . . . . . . . . . . Robots Built . | . . . . . . . . . . . . . . . Authchips . | . . . . . . . . . . . . . . . Time . | . . . . . . . . . . . . . . . Total Robot Build Rating . | . . . . . . . . . . . . . . . Part Schematics Acquired 2 | . . . . 1 . . . . . . 1 . . . Parts Built . | . . . . . . . . . . . . . . . Authchips . | . . . . . . . . . . . . . . . Time . | . . . . . . . . . . . . . . . Total Part Build Rating . | . . . . . . . . . . . . . . . Parts Repaired 2 | . . . . . 2 . . . . . . . . . Time 77 | . . . . . 77 . . . . . . . . . Parts Recycled . | . . . . . . . . . . . . . . . Recycled Matter . | . . . . . . . . . . . . . . . Retrieved Matter . | . . . . . . . . . . . . . . . Retrieved Components 14 | . 2 . . . . . 12 . . . . . . . Parts Scanalyzed . | . . . . . . . . . . . . . . . Part Schematics Acquired . | . . . . . . . . . . . . . . . Parts Damaged . | . . . . . . . . . . . . . . . Bothacking | -11 -10 -10 -10 -9 -8 -7 -6 -6 -6 -6 -6 -5 -5 -5 ------------ Run | Yrd Mat Min Exi Min Mat Fac Fac Ext Cet Arc Hub Fac Upp Upp Used RIF Installer . | . . . . . . . . . . . . . . . Robots Hacked . | . . . . . . . . . . . . . . . Non-combat . | . . . . . . . . . . . . . . . Combat . | . . . . . . . . . . . . . . . Robot Hacks Applied . | . . . . . . . . . . . . . . . Relay Couplers Released 4 | . . . . . 4 . . . . . . . . . Machine Destruction 4 | . . . . . 4 . . . . . . . . . Fabnet Peak Effective % . | . . . . . . . . . . . . . . . Robots Rewired 11 | . . . . . . . . 9 . . . . . 2 Allies Hacked . | . . . . . . . . . . . . . . . Hacks Repelled . | . . . . . . . . . . . . . . . Allies | -11 -10 -10 -10 -9 -8 -7 -6 -6 -6 -6 -6 -5 -5 -5 -------- Run | Yrd Mat Min Exi Min Mat Fac Fac Ext Cet Arc Hub Fac Upp Upp Total Allies 27 | . . . . 4 . . . 16 5 . . . . 2 Largest Group 14 | . . . . 4 4 . . 14 10 5 5 . . 2 Highest-Rated Group 631 | . . . . 71 71 . . 536 631 480 480 . . 59 Highest-Rated Ally 159 | . . . . 31 31 . . 159 159 96 96 . . 30 Total Orders 6 | . . . . . . . . . 1 2 3 . . . STAY 3 | . . . . . . . . . . 1 2 . . . FOLLOW 2 | . . . . . . . . . . 1 1 . . . AID 1 | . . . . . . . . . 1 . . . . . Ally Attacks 293 | . . . . . 47 . . 131 31 18 59 . . 7 Total Damage 7281 | . . . . . 495 . . 2513 759 644 2759 . . 111 Kills 55 | . . . . . 5 . . 21 7 2 18 . . 2 Allies Corrupted . | . . . . . . . . . . . . . . . Allies Melted . | . . . . . . . . . . . . . . . Intel | -11 -10 -10 -10 -9 -8 -7 -6 -6 -6 -6 -6 -5 -5 -5 ------- Run | Yrd Mat Min Exi Min Mat Fac Fac Ext Cet Arc Hub Fac Upp Upp Active Infowar (turns) 9394 | 34 302 49 . . . . 3705 . . . . 3652 930 722 Optics 5304 | . . . . . . . . . . . . 3652 930 722 IFF 1109 | . . . . . . . . . . . . . 858 251 Terrain 23 | 23 . . . . . . . . . . . . . . Structural 3733 | . 28 . . . . . 3705 . . . . . . . Seismic 339 | 11 279 49 . . . . . . . . . . . . Decoding 1 | . . . . . . . . . . . . . . 1 Jamming 632 | . . . . . . . . . . . . 290 120 222 Robot Analysis Total 2 | . . . . . . 1 . . . . . 1 . . Derelict Logs Recovered 4 | . . 1 . 2 . . . . . . . . 1 . Drone Launches . | . . . . . . . . . . . . . . . Drone Recoveries . | . . . . . . . . . . . . . . . Exploration | -11 -10 -10 -10 -9 -8 -7 -6 -6 -6 -6 -6 -5 -5 -5 ------------- Run | Yrd Mat Min Exi Min Mat Fac Fac Ext Cet Arc Hub Fac Upp Upp Turns Passed 17726 | 251 657 431 1028 450 1459 1745 4047 981 438 211 724 3652 930 722 Spaces Moved 7322 | 144 337 191 494 177 452 522 1422 439 143 95 402 1705 455 344 Core 2 | 2 . . . . . . . . . . . . . . Treads 2975 | . 283 191 494 177 452 516 862 . . . . . . . Legs 196 | 142 54 . . . . . . . . . . . . . Wheels 4149 | . . . . . . 6 560 439 143 95 402 1705 455 344 Hover . | . . . . . . . . . . . . . . . Flight . | . . . . . . . . . . . . . . . Fastest Speed 50 | 50 120 160 160 240 240 145 160 165 165 165 165 165 190 175 Average Speed 207 | 119 153 160 205 240 269 303 256 165 165 165 165 175 190 189 Slowest Speed 320 | 120 160 160 240 240 320 305 320 165 180 165 255 255 190 190 Overloaded Moves . | . . . . . . . . . . . . . . . Propulsion Burnouts . | . . . . . . . . . . . . . . . Robots Hopped . | . . . . . . . . . . . . . . . Potential Cave-ins 1 | . . . . . . . . . . . . 1 . . Cave-ins Triggered . | . . . . . . . . . . . . . . . Exploration Rate (%) 47 | 6 54 42 70 42 44 13 34 63 68 68 37 47 69 48 Regions Visited 14 Branch Regions 9 Pre-discovered Areas 2 | . 1 . 1 . . . . . . . . . . . Known Exits Taken 4 | . . . . . 1 . 1 . . . 1 1 . . Unknown Exits Taken 10 | 1 1 1 1 1 . 1 . 1 1 1 . . 1 . Scrap Searched 6 | . . 1 . 1 . . . . . . . . 2 2 Spaces Dug 112 | . . . . . 5 10 47 6 . 1 6 37 . . Terrain Destroyed 604 | . 11 . . . 72 14 88 8 2 9 6 307 10 77 Melee 47 | . . . . . 2 10 29 6 . . . . . . Projectile 199 | . . . . . 51 4 28 2 2 9 6 83 10 4 AOE 358 | . 11 . . . 19 . 31 . . . . 224 . 73 Terrain Rammed . | . . . . . . . . . . . . . . . Walls Destroyed . | . . . . . . . . . . . . . . . Machines Disabled . | . . . . . . . . . . . . . . . Actions | -11 -10 -10 -10 -9 -8 -7 -6 -6 -6 -6 -6 -5 -5 -5 --------- Run | Yrd Mat Min Exi Min Mat Fac Fac Ext Cet Arc Hub Fac Upp Upp Total 9184 | 180 421 250 509 203 658 651 1703 644 329 126 447 2179 498 386 Wait 700 | . 12 4 . 26 54 38 61 79 152 2 20 228 22 2 Move 7308 | 143 336 190 493 176 451 521 1421 438 142 94 401 1704 454 344 Hop . | . . . . . . . . . . . . . . . Pick Up 119 | 8 16 5 5 1 28 11 19 3 1 1 2 16 3 . Fast Attach 88 | 7 2 1 . . 11 7 21 4 5 . 1 24 . 5 Attach 26 | 1 1 1 2 . 6 2 6 1 . . . 5 1 . Detach 25 | 1 . . 2 . 4 2 5 . 2 . . 8 . 1 Swap 134 | . 12 6 1 . 12 15 26 9 4 4 4 25 8 8 Drop 166 | . 12 6 6 . 28 17 39 7 6 3 3 34 2 3 Fire 447 | 20 29 33 . . 47 21 60 47 17 22 15 119 8 9 Melee 85 | . . . . . 17 16 45 7 . . . . . . Ram 1 | . . . . . . . . . . . 1 . . . Kick . | . . . . . . . . . . . . . . . Crush 6 | . 1 4 . . . 1 . . . . . . . . Escape Stasis 25 | . . . . . . . . 9 . . . 16 . . Rewire 54 | . . . . . . . . 40 . . . . . 14 Trap . | . . . . . . . . . . . . . . . Miscellaneous . | . . . . . . . . . . . . . . . Route ------- -11/Scrapyard -10/Materials (discovered 2 exits: [*Mat] / [*Min]) -10/Mines -10/Exiles -9/Mines -8/Materials (discovered 2 exits: *Fac x2) -7/Factory -6/Factory (discovered 4 exits: Low x2 / *Ext x2) -6/Extension (discovered 2 exits: *Fac / *Cet) -6/Cetus -6/Archives (discovered 2 exits: *Fac / *Hub) -6/Hub_04(d) (discovered 4 exits: *Fac x4) -5/Factory (discovered 5 exits: [*Fac x3] / *Upp x2) -5/Upper Caves -5/Upper Caves History --------- Turn | Location | Event 15 | -11/Scrapyard | Discovered new exit (range 15) 252 | -11/Scrapyard | Entered Materials 303 | -10/Materials | Build established: Mutant 836 | -10/Materials | Discovered new exit (range 16) 888 | -10/Materials | Discovered new exit (range 5) 909 | -10/Materials | Entered Mines 1252 | -10/Mines | Learned Materials stockpile data 1332 | -10/Mines | Deemed a non-threat by the Exiles lab entrance 1333 | -10/Mines | Discovered new exit (range 5) 1340 | -10/Mines | Entered Exiles 1382 | -10/Exiles | Met 8R-AWN 1406 | -10/Exiles | Met EX-HEX 1457 | -10/Exiles | Met EX-BIN 1476 | -10/Exiles | Aligned with FarCom system 1478 | -10/Exiles | Given EX-Vault access code 1518 | -10/Exiles | Opened EX-Vault 1534 | -10/Exiles | Found XL Autogun Array 1566 | -10/Exiles | Warned to stay clear of 0b10 Research branches 1612 | -10/Exiles | Met EX-DEC 1619 | -10/Exiles | Learned location of Zion (-7) 2346 | -10/Exiles | Discovered new exit (range 10) 2368 | -10/Exiles | Left Exiles lab with XL Autogun Array 2368 | -10/Exiles | Entered Mines 2374 | -9/Mines | Met a Derelict bent on vengeance 2474 | -9/Mines | Assisted by bots powering up and referring to "LRC-V3" 2653 | -9/Mines | Learned Materials terminal intel 2756 | -9/Mines | Learned 2 Materials zone layouts 2768 | -9/Mines | Discovered new exit (range 9) 2776 | -9/Mines | Received a Mining Laser from a helpful Derelict 2818 | -9/Mines | Entered Materials 2818 | -8/Materials | Accompanied by 4 allies 2818 | -8/Materials | Evolved 4 slots: Utility x1, Weapon x3 2819 | -8/Materials | Identified exit to Factory 2821 | -8/Materials | Loaded intel: 12 terminal locations 3201 | -8/Materials | Garrison activated, responded to threat 3511 | -8/Materials | Repaired Lgt. Armor Plating 3574 | -8/Materials | Build established: Skirmisher 4035 | -8/Materials | Repaired Cld. Ion Engine 4277 | -8/Materials | Entered Factory 4277 | -7/Factory | Evolved 2 slots: Weapon x2 4584 | -7/Factory | Build established: Executioner 5672 | -7/Factory | Discovered new exit (range 13) 6022 | -7/Factory | Entered another Factory area 6022 | -6/Factory | Evolved 2 slots: Utility x2 6080 | -6/Factory | Found Prototype Launcher 6080 | -6/Factory | Identified Rocket Array 6088 | -6/Factory | Found Rocket Array 6283 | -6/Factory | Identified exit to DSF 9591 | -6/Factory | Garrison activated, responded to threat 9631 | -6/Factory | Identified exit to Lower Caves 9631 | -6/Factory | Identified exit to Extension 10069 | -6/Factory | Entered Extension 10273 | -6/Extension | Rescued a captive Derelict 10273 | -6/Extension | Rescued a captive Derelict 10359 | -6/Extension | Rescued a captive Derelict 10360 | -6/Extension | Rescued a captive Derelict 10548 | -6/Extension | Rescued A7 10581 | -6/Extension | Door terminal overloaded 10582 | -6/Extension | Rescued a captive Derelict 10583 | -6/Extension | Rescued a captive Derelict 10714 | -6/Extension | Spotted B-75 Beast 10745 | -6/Extension | Allies destroyed B-75 Beast 10763 | -6/Extension | Build established: Commander-Executioner 10769 | -6/Extension | First assault squad dispatched 10789 | -6/Extension | Spotted B-75 Beast 10805 | -6/Extension | Allies destroyed B-75 Beast 10869 | -6/Extension | Disrupted transfer network 10891 | -6/Extension | Lost 3 allies 11011 | -6/Extension | Discovered new exit (range 16) 11013 | -6/Extension | Discovered new exit (range 15) 11050 | -6/Extension | Entered Cetus 11050 | -6/Cetus | Accompanied by 10 allies (A7) 11055 | -6/Cetus | Acquired a Cetus Manufacturing Module code from A7 11073 | -6/Cetus | Spotted Cetus Guard 11074 | -6/Cetus | Spotted Cetus Guard 11094 | -6/Cetus | Allies destroyed Cetus Guard 11095 | -6/Cetus | Spotted Cetus Guard 11107 | -6/Cetus | Allies destroyed Cetus Guard 11115 | -6/Cetus | Destroyed Cetus Guard 11134 | -6/Cetus | Lost 9 allies 11245 | -6/Cetus | Escorted A7 to Cetus Mainframe 11260 | -6/Cetus | Started Cetus Manufacturing Module 11285 | -6/Cetus | Manufactured an Enhanced Grunt 11310 | -6/Cetus | Manufactured an Enhanced Grunt 11335 | -6/Cetus | Manufactured an Enhanced Grunt 11360 | -6/Cetus | Manufactured an Enhanced Grunt 11385 | -6/Cetus | Manufactured an Enhanced Grunt 11422 | -6/Cetus | Discovered new exit (range 16) 11450 | -6/Cetus | Build established: Scavenger-Executioner 11462 | -6/Cetus | Murdered A7 11466 | -6/Cetus | Extracted ID and sensor layout for unrecognized location from A7's data core 11488 | -6/Cetus | Entered Archives 11488 | -6/Archives | Accompanied by 5 allies 11546 | -6/Archives | Discovered new exit (range 15) 11599 | -6/Archives | Discovered new exit (range 16) 11699 | -6/Archives | Entered Hub_04(d) 11699 | -6/Hub_04(d) | Accompanied by 5 allies 11731 | -6/Hub_04(d) | Identified exit to Factory 11843 | -6/Hub_04(d) | Build established: Commander-Executioner 11899 | -6/Hub_04(d) | Spotted B-75 Beast 12334 | -6/Hub_04(d) | Network Hub disabled 12374 | -6/Hub_04(d) | Lost 4 allies 12409 | -6/Hub_04(d) | Spotted Lightning 12409 | -6/Hub_04(d) | Spotted Lightning 12411 | -6/Hub_04(d) | Spotted Lightning 12412 | -6/Hub_04(d) | System corruption reached 10% 12423 | -6/Hub_04(d) | Entered Factory 12423 | -5/Factory | Evolved 2 slots: Utility x2 12424 | -5/Factory | Discovered new exit (range 14) 12673 | -5/Factory | Build established: Scavenger-Executioner 12800 | -5/Factory | Identified exit to Upper Caves 13855 | -5/Factory | Build established: Hacker-Executioner 13963 | -5/Factory | Discovered new exit (range 5) 15196 | -5/Factory | Discovered new exit (range 21) 15690 | -5/Factory | Discovered new exit (range 14) 15723 | -5/Factory | First assault squad dispatched 16063 | -5/Factory | Build established: Executioner 16075 | -5/Factory | Entered Upper Caves 16187 | -5/Upper Caves | Spotted B-75 Beast 16262 | -5/Upper Caves | Destroyed B-75 Beast 16411 | -5/Upper Caves | Learned location of 1 exit from Factory 16986 | -5/Upper Caves | Discovered new exit (range 11) 17005 | -5/Upper Caves | Entered another Upper Caves area 17252 | -5/Upper Caves | Attracted the attention of an 0b10 outpost 17293 | -5/Upper Caves | Destroyed 9 combat bots 17727 | -5/Upper Caves | Self-destructed Last Messages --------------- 17654_ Matter Filter destroyed. 17659_ G-67 Veteran destroyed. 17659_ B-60 Warrior destroyed. 17659_ L-41 Fighter destroyed. 17662_ The unstable cave ceiling collapses. 17669_ EZ4S4>IEYR Z1#EK XOL 17674_ The unstable cave ceiling collapses. 17675_ Acquired 18 matter. 17679_ Acquired 5 matter. 17681_ Acquired 35 matter. 17701_ System corrupted: Matter fused (-9). 17701_ Acquired Unknown Protection. 17701_ Identified Core Shielding. 17702_ Acquired 44 matter. 17704_ Acquired 89 matter. 17723_ Slug penetrates G-67 Veteran. 17723_ Slug penetrates G-50 Soldier. 17723_ G-67 Veteran destroyed. 17725_ Hyp. Coil Gun destroyed. 17727_ Corrupted Adv. Heat Sink fries itself beyond repair. Map ----- +----------------------------------------------------+ | ?????????????????????????????????????????????????? | | ?????????????????????????????????????????????????? | | ????????????????????????????????????????##???????? | | ???????????????????????????????????????## #??????? | | ???????????????????????????????????????# ##????? | | ???????????????????????????????????????# #????? | | ???????????????????????????????????????# #????? | | ????????????????????????????????????????# #????? | | ?????????????????????????????##?????????# ###### | | ????????????????????????????## #####????# | | ?????????????????????????#### #????# ###### | | ?###?????????????????????# ####### ###??# | | ## #???????????????????### #### ## # | | # #????????????????#### ### "## | | # #????????????????# # | | # ##??????????????## ??# # | | #??????????##### #?### # | | #?????????## ## ### ## # #### | | #?????????# #### ####??? | | ####???????### ## #?## #####?? | | #?????????## # ## # #?##" # # #?? | | #????????## #?# ## #?? | | #????????# # ##### # "# ##?? | | ##??????### ###; #" " ####??? | | #?????### #" #?????? | | ????### @ #"" " # | | #?### ## ######## | | ### ## | | # # ### #### | | ##### ## #?# ##??## ## | | ###?## * ## #?# ###????## #?# | | ## #??## ! ### #?#####???????###?? | | ## ##?## =##?# #?????????????????? | | #####?## ##??#g #??????????????????? | | # #?????# ##??? #??????????????????? | | ####### #???? * #??????????????????? | | # #????g###???????????????????? ? | | ## #????g?????????????????????????? | | " ## #### ##??? g?????????????????????????? | | " # #??######????##?????????????????????????? | | " # #??????????????????????????????????????? | | " # #?????????????????????????????????????? | | # ##?????????????????????????????????????? | | " ## ####??????????????????????????????????????? | | " ####?????????????????????????????????????????? | | " #????????????????????????????????????????????? | | " #????????????????????????????????????????????? | | #????????????????????????????????????????????? | | #????????????????????????????????????????????? | | #????????????????????????????????????????????? | +----------------------------------------------------+ Best States ------------- Heat Dissipation 59 Energy Generation 23 Energy Capacity 290 Matter Stores 300 Matter Capacity 300 Sight Range 22 Terrain Scan Range 16 Terrain Scan Density 10 Jamming Range 14 Armor Coverage 300 Core Shielding 20 Utility Shielding 33 Weapon Shielding 33 Evasion (%) 55 Core Analysis 6 Recoil Reduction 4 Matter Filtering 30 Offensive Hacking 24 Authchip Count 1 Item Schematics ----------------- Cargo Storage Unit | -9/Mines | Hacked Tesla Bomb Launcher | -6/Hub_04(d) | Hacked Robot Schematics ------------------ None Fabricated ------------ Nothing Repaired ---------- Lgt. Armor Plating | 13% | -8/Materials Cld. Ion Engine | 54% | -8/Materials Alien Tech Used ----------------- None Achievements -------------- Just Shoot The Terminal Challenges ------------ None Game ------ Seed StasisDisintegrationKatana Manual? 0 Play Time 01:58:58 Cumulative 246.5 hours Start 2025.10.15 @ 18:42:54 End 2025.10.20 @ 22:47:31 Sessions 11 Manual Loads 0 Difficulty Rogue Special Mode None Game No. 256 Rogue 256 Adventurer 0 Explorer 0 Win Type - Total 3 Types 3/0/0/0/0/0/0/0/0/0 Lore% 74 Gallery% 71 Achievement% 66 Wizard Run 0 Options --------- Layout 0 ASCII 0 Keyboard 1 Movement Vi Keybinds 0 Fullscreen 2 Font 18/TerminusBold Map View 76x50 Zoom Use 0% Tactical HUD 1 Map Filters NONE Filters NONE Steam 1 RUN: 13816830-2ab8-4092-8d00-5c42df33f371